fUST/lending_fUST_20260520
["ID","MTS","AMOUNT","RATE_DAILY","PERIOD"]
[422691363,1779251368000,-31934.16973769,6.892e-05,2]
[422691366,1779251368000,-273.30771411,7.026e-05,2]
[422691364,1779251368000,-500.0,7.026e-05,2]
[422691365,1779251368000,-224.3767145,7.026e-05,2]
[422691369,1779251368000,-300.0,7.029e-05,2]
[422691368,1779251368000,-300.0,7.029e-05,2]
[422691371,1779251368000,-300.0,7.029e-05,2]
[422691370,1779251368000,-300.0,7.029e-05,2]
[422691367,1779251368000,-32063.99976086,7.027e-05,2]
[422691373,1779251368000,-300.0,7.029e-05,2]
[422691376,1779251368000,-300.0,7.029e-05,2]
[422691375,1779251368000,-300.0,7.029e-05,2]
[422691374,1779251368000,-300.0,7.029e-05,2]
[422691378,1779251368000,-300.0,7.029e-05,2]
[422691377,1779251368000,-300.0,7.029e-05,2]
[422691380,1779251368000,-89.83120851,7.029e-05,2]
[422691379,1779251368000,-300.0,7.029e-05,2]
[422691372,1779251368000,-300.0,7.029e-05,2]
[422691444,1779251432000,-720.0,7.885e-05,2]
[422691434,1779251432000,-1200.0,7.58e-05,2]
[422691432,1779251432000,-300.0,7.58e-05,2]
[422691430,1779251432000,-300.0,7.58e-05,2]
[422691429,1779251432000,-300.0,7.58e-05,2]
[422691427,1779251432000,-300.0,7.58e-05,2]
[422691421,1779251432000,-221.37558484,7.029e-05,2]
[422691417,1779251432000,-210.16879149,7.029e-05,2]
[422691425,1779251432000,-600.0,7.169e-05,2]
[422691423,1779251432000,-300.0,7.029e-05,2]
[422691419,1779251432000,-78.62441516,7.029e-05,2]
[422691450,1779251432000,-161.70661154,8.015e-05,2]
[422691436,1779251432000,-1664.62441516,7.717e-05,2]
[422691446,1779251432000,-285.98,7.919e-05,2]
[422691443,1779251432000,-376.44913958,7.817e-05,2]
[422691463,1779251432000,-434.97123226,8.218e-05,2]
[422691459,1779251432000,-152.0,8.143e-05,7]
[422691465,1779251432000,-65.02876774,8.218e-05,2]
[422691461,1779251432000,-500.0,8.218e-05,2]
[422691457,1779251432000,-152.0,8.143e-05,7]
[422691467,1779251432000,-242.00853836,8.218e-05,2]
[422691453,1779251432000,-160.0,8.015e-05,2]
[422691448,1779251432000,-766.43500783,8.015e-05,2]
[422691452,1779251432000,-160.0,8.015e-05,2]
[422691438,1779251432000,-11296.40453448,7.717e-05,2]
[422691440,1779251432000,-462.33694392,7.817e-05,2]
[422691455,1779251432000,-628.96727899,8.019e-05,2]
[422691618,1779251438000,-160.0,8.015e-05,2]
[422691619,1779251438000,-257.99146164,8.218e-05,2]
[422691621,1779251438000,-500.0,8.218e-05,2]
[422691620,1779251438000,-500.0,8.218e-05,2]
[422691623,1779251438000,-500.0,8.218e-05,2]
[422691624,1779251438000,-405.13440622,8.218e-05,2]
[422691622,1779251438000,-500.0,8.218e-05,2]
[422691630,1779251441000,-500.0,8.218e-05,2]
[422691632,1779251441000,-96.73326124,8.218e-05,2]
[422691631,1779251441000,-500.0,8.218e-05,2]
[422691633,1779251441000,-403.26673876,8.218e-05,2]
[422691629,1779251441000,-94.86559378,8.218e-05,2]
[422691634,1779251441000,-500.0,8.218e-05,2]
[422691636,1779251441000,-500.0,8.218e-05,2]
[422691638,1779251441000,-600.0,8.218e-05,2]
[422691635,1779251441000,-236.28807985,8.218e-05,2]
[422691637,1779251441000,-500.0,8.218e-05,2]
[422691639,1779251441000,-267.04975342,8.218e-05,2]
[422691641,1779251442000,-1532.43589071,8.219e-05,2]
[422691640,1779251442000,-232.95024658,8.218e-05,2]
[422691666,1779251444000,-500.64573221,8.219e-05,2]
[422691676,1779251444000,-500.0,8.219e-05,2]
[422691677,1779251444000,-500.0,8.219e-05,2]
[422691665,1779251444000,-500.0,8.219e-05,2]
[422691671,1779251444000,-500.0,8.219e-05,2]
[422691669,1779251444000,-232.2922031,8.219e-05,2]
[422691668,1779251444000,-267.7077969,8.219e-05,2]
[422691662,1779251444000,-500.0,8.219e-05,2]
[422691670,1779251444000,-500.0,8.219e-05,2]
[422691672,1779251444000,-500.0,8.219e-05,2]
[422691667,1779251444000,-500.0,8.219e-05,2]
[422691663,1779251444000,-500.0,8.219e-05,2]
[422691661,1779251444000,-500.0,8.219e-05,2]
[422691659,1779251444000,-225.46009214,8.219e-05,2]
[422691658,1779251444000,-188.7983071,8.219e-05,2]
[422691664,1779251444000,-500.0,8.219e-05,2]
[422691657,1779251444000,-311.2016929,8.219e-05,2]
[422691654,1779251444000,-500.0,8.219e-05,2]
[422691656,1779251444000,-500.0,8.219e-05,2]
[422691655,1779251444000,-500.0,8.219e-05,2]
[422691653,1779251444000,-500.0,8.219e-05,2]
[422691651,1779251444000,-2068.94122709,8.219e-05,2]
[422691652,1779251444000,-342.6368822,8.219e-05,2]
[422691650,1779251444000,-152.0,8.15e-05,7]
[422691673,1779251444000,-500.0,8.219e-05,2]
[422691660,1779251444000,-274.53990786,8.219e-05,2]
[422691674,1779251444000,-292.36763306,8.219e-05,2]
[422691675,1779251444000,-791.13,8.219e-05,2]
[422691679,1779251444000,-500.0,8.219e-05,2]
[422691678,1779251444000,-500.0,8.219e-05,2]
[422691702,1779251444000,-500.0,8.219e-05,2]
[422691699,1779251444000,-500.0,8.219e-05,2]
[422691700,1779251444000,-500.0,8.219e-05,2]
[422691697,1779251444000,-1209.41,8.219e-05,2]
[422691695,1779251444000,-508.44811414,8.219e-05,2]
[422691696,1779251444000,-500.0,8.219e-05,2]
[422691694,1779251444000,-500.0,8.219e-05,2]
[422691692,1779251444000,-500.0,8.219e-05,2]
[422691701,1779251444000,-151.5,8.219e-05,2]
[422691693,1779251444000,-500.0,8.219e-05,2]
[422691703,1779251444000,-282.34723432,8.219e-05,2]
[422691704,1779251444000,-500.0,8.219e-05,2]
[422691698,1779251444000,-500.0,8.219e-05,2]
[422691687,1779251444000,-500.0,8.219e-05,2]
[422691705,1779251444000,-90.86456808,8.219e-05,2]
[422691689,1779251444000,-500.0,8.219e-05,2]
[422691686,1779251444000,-500.0,8.219e-05,2]
[422691684,1779251444000,-503.27394546,8.219e-05,2]
[422691681,1779251444000,-500.0,8.219e-05,2]
[422691685,1779251444000,-534.8,8.219e-05,2]
[422691691,1779251444000,-542.32,8.219e-05,2]
[422691682,1779251444000,-500.0,8.219e-05,2]
[422691683,1779251444000,-500.0,8.219e-05,2]
[422691690,1779251444000,-502.74010172,8.219e-05,2]
[422691688,1779251444000,-504.53847859,8.219e-05,2]
[422691680,1779251444000,-500.0,8.219e-05,2]
[422691731,1779251447000,-98.91912632,8.219e-05,2]
[422691735,1779251447000,-500.0,8.219e-05,2]
[422691732,1779251447000,-401.08087368,8.219e-05,2]
[422691733,1779251447000,-500.0,8.219e-05,2]
[422691734,1779251447000,-500.0,8.219e-05,2]
[422691736,1779251447000,-501.10650511,8.219e-05,2]
[422691737,1779251447000,-500.0,8.219e-05,2]
[422691742,1779251447000,-500.0,8.219e-05,2]
[422691739,1779251447000,-500.0,8.219e-05,2]
[422691740,1779251447000,-594.96,8.219e-05,2]
[422691744,1779251447000,-499.08542258,8.219e-05,2]
[422691743,1779251447000,-500.0,8.219e-05,2]
[422691741,1779251447000,-2659.84,8.219e-05,2]
[422691752,1779251447000,-501.31037393,8.219e-05,2]
[422691729,1779251447000,-500.0,8.219e-05,2]
[422691738,1779251447000,-500.0,8.219e-05,2]
[422691730,1779251447000,-329.01006844,8.219e-05,2]
[422691718,1779251447000,-585.83789117,8.219e-05,2]
[422691728,1779251447000,-500.0,8.219e-05,2]
[422691749,1779251447000,-500.0,8.219e-05,2]
[422691710,1779251447000,-409.13543192,8.219e-05,2]
[422691712,1779251447000,-500.0,8.219e-05,2]
[422691715,1779251447000,-500.0,8.219e-05,2]
[422691725,1779251447000,-258.55683001,8.219e-05,2]
[422691721,1779251447000,-500.0,8.219e-05,2]
[422691723,1779251447000,-500.0,8.219e-05,2]
[422691726,1779251447000,-500.0,8.219e-05,2]
[422691714,1779251447000,-500.0,8.219e-05,2]
[422691719,1779251447000,-162.54589324,8.219e-05,2]
[422691717,1779251447000,-500.0,8.219e-05,2]
[422691720,1779251447000,-500.0,8.219e-05,2]
[422691724,1779251447000,-500.0,8.219e-05,2]
[422691716,1779251447000,-500.0,8.219e-05,2]
[422691722,1779251447000,-500.0,8.219e-05,2]
[422691727,1779251447000,-500.0,8.219e-05,2]
[422691713,1779251447000,-500.0,8.219e-05,2]
[422691745,1779251447000,-519.11,8.219e-05,2]
[422691711,1779251447000,-500.0,8.219e-05,2]
[422691746,1779251447000,-500.0,8.219e-05,2]
[422691773,1779251447000,-649.27,8.219e-05,2]
[422691776,1779251447000,-500.0,8.219e-05,2]
[422691774,1779251447000,-500.0,8.219e-05,2]
[422691780,1779251447000,-500.0,8.219e-05,2]
[422691778,1779251447000,-500.0,8.219e-05,2]
[422691779,1779251447000,-500.0,8.219e-05,2]
[422691769,1779251447000,-274.3155431,8.219e-05,2]
[422691767,1779251447000,-928.6,8.219e-05,2]
[422691768,1779251447000,-441.46376351,8.219e-05,2]
[422691771,1779251447000,-500.0,8.219e-05,2]
[422691775,1779251447000,-1454.82,8.219e-05,2]
[422691781,1779251447000,-500.0,8.219e-05,2]
[422691784,1779251447000,-500.0,8.219e-05,2]
[422691783,1779251447000,-501.10747611,8.219e-05,2]
[422691785,1779251447000,-500.0,8.219e-05,2]
[422691750,1779251447000,-500.0,8.219e-05,2]
[422691777,1779251447000,-632.47,8.219e-05,2]
[422691772,1779251447000,-500.32393836,8.219e-05,2]
[422691782,1779251447000,-500.0,8.219e-05,2]
[422691757,1779251447000,-500.0,8.219e-05,2]
[422691770,1779251447000,-526.62,8.219e-05,2]
[422691747,1779251447000,-500.0,8.219e-05,2]
[422691748,1779251447000,-1216.22,8.219e-05,2]
[422691754,1779251447000,-500.15,8.219e-05,2]
[422691764,1779251447000,-500.0,8.219e-05,2]
[422691755,1779251447000,-500.0,8.219e-05,2]
[422691758,1779251447000,-500.0,8.219e-05,2]
[422691759,1779251447000,-902.1,8.219e-05,2]
[422691751,1779251447000,-578.65,8.219e-05,2]
[422691761,1779251447000,-508.4,8.219e-05,2]
[422691756,1779251447000,-500.96,8.219e-05,2]
[422691753,1779251447000,-500.0,8.219e-05,2]
[422691766,1779251447000,-500.0,8.219e-05,2]
[422691765,1779251447000,-500.0,8.219e-05,2]
[422691762,1779251447000,-500.0,8.219e-05,2]
[422691760,1779251447000,-500.0,8.219e-05,2]
[422691763,1779251447000,-500.0,8.219e-05,2]
[422691825,1779251448000,-500.0,8.219e-05,2]
[422691819,1779251448000,-500.0,8.219e-05,2]
[422691822,1779251448000,-1197.16,8.219e-05,2]
[422691814,1779251448000,-500.0,8.219e-05,2]
[422691827,1779251448000,-1607.94,8.219e-05,2]
[422691820,1779251448000,-500.0,8.219e-05,2]
[422691826,1779251448000,-500.0,8.219e-05,2]
[422691816,1779251448000,-500.0,8.219e-05,2]
[422691823,1779251448000,-2649.66,8.219e-05,2]
[422691829,1779251448000,-500.0,8.219e-05,2]
[422691818,1779251448000,-830.11,8.219e-05,2]
[422691824,1779251448000,-500.0,8.219e-05,2]
[422691839,1779251448000,-500.0,8.219e-05,2]
[422691838,1779251448000,-500.0,8.219e-05,2]
[422691828,1779251448000,-500.0,8.219e-05,2]
[422691830,1779251448000,-500.0,8.219e-05,2]
[422691834,1779251448000,-500.0,8.219e-05,2]
[422691831,1779251448000,-500.0,8.219e-05,2]
[422691833,1779251448000,-500.0,8.219e-05,2]
[422691836,1779251448000,-720.09,8.219e-05,2]
[422691837,1779251448000,-500.0,8.219e-05,2]
[422691835,1779251448000,-500.0,8.219e-05,2]
[422691832,1779251448000,-477.51505625,8.219e-05,2]
[422691842,1779251448000,-500.29557385,8.219e-05,2]
[422691852,1779251448000,-500.93158519,8.219e-05,2]
[422691821,1779251448000,-500.0,8.219e-05,2]
[422691840,1779251448000,-500.0,8.219e-05,2]
[422691817,1779251448000,-1028.25,8.219e-05,2]
[422691794,1779251448000,-500.0,8.219e-05,2]
[422691811,1779251448000,-500.0,8.219e-05,2]
[422691787,1779251448000,-501.11871704,8.219e-05,2]
[422691786,1779251448000,-500.0,8.219e-05,2]
[422691788,1779251448000,-500.0,8.219e-05,2]
[422691790,1779251448000,-2832.15,8.219e-05,2]
[422691789,1779251448000,-500.0,8.219e-05,2]
[422691793,1779251448000,-500.0,8.219e-05,2]
[422691797,1779251448000,-503.06790724,8.219e-05,2]
[422691791,1779251448000,-500.0,8.219e-05,2]
[422691792,1779251448000,-745.58,8.219e-05,2]
[422691796,1779251448000,-1049.72,8.219e-05,2]
[422691798,1779251448000,-500.0,8.219e-05,2]
[422691841,1779251448000,-500.0,8.219e-05,2]
[422691795,1779251448000,-583.93785039,8.219e-05,2]
[422691800,1779251448000,-500.0,8.219e-05,2]
[422691799,1779251448000,-500.0,8.219e-05,2]
[422691801,1779251448000,-500.0,8.219e-05,2]
[422691802,1779251448000,-742.11,8.219e-05,2]
[422691813,1779251448000,-500.0,8.219e-05,2]
[422691812,1779251448000,-512.07,8.219e-05,2]
[422691803,1779251448000,-1089.37,8.219e-05,2]
[422691804,1779251448000,-500.0,8.219e-05,2]
[422691806,1779251448000,-500.0,8.219e-05,2]
[422691805,1779251448000,-1487.34,8.219e-05,2]
[422691810,1779251448000,-192.907,8.219e-05,2]
[422691807,1779251448000,-500.0,8.219e-05,2]
[422691809,1779251448000,-500.0,8.219e-05,2]
[422691808,1779251448000,-500.0,8.219e-05,2]
[422691815,1779251448000,-524.94,8.219e-05,2]
[422691844,1779251448000,-500.0,8.219e-05,2]
[422691853,1779251448000,-500.0,8.219e-05,2]
[422691848,1779251448000,-500.0,8.219e-05,2]
[422691877,1779251448000,-526.05749316,8.219e-05,2]
[422691876,1779251448000,-2661.01,8.219e-05,2]
[422691883,1779251448000,-500.0,8.219e-05,2]
[422691881,1779251448000,-500.0,8.219e-05,2]
[422691882,1779251448000,-2684.8,8.219e-05,2]
[422691892,1779251448000,-2207.14,8.219e-05,2]
[422691893,1779251448000,-1664.93,8.219e-05,2]
[422691885,1779251448000,-869.79,8.219e-05,2]
[422691884,1779251448000,-500.0,8.219e-05,2]
[422691887,1779251448000,-500.0,8.219e-05,2]
[422691886,1779251448000,-636.34,8.219e-05,2]
[422691888,1779251448000,-261.77013589,8.219e-05,2]
[422691889,1779251448000,-1847.12,8.219e-05,2]
[422691891,1779251448000,-1928.01,8.219e-05,2]
[422691890,1779251448000,-577.58,8.219e-05,2]
[422691895,1779251448000,-500.0,8.219e-05,2]
[422691905,1779251448000,-2404.99956709,8.219e-05,2]
[422691894,1779251448000,-500.0,8.219e-05,2]
[422691845,1779251448000,-635.8,8.219e-05,2]
[422691903,1779251448000,-500.0,8.219e-05,2]
[422691899,1779251448000,-500.0,8.219e-05,2]
[422691898,1779251448000,-500.0,8.219e-05,2]
[422691901,1779251448000,-1964.47,8.219e-05,2]
[422691902,1779251448000,-500.0,8.219e-05,2]
[422691897,1779251448000,-500.0,8.219e-05,2]
[422691900,1779251448000,-500.0,8.219e-05,2]
[422691904,1779251448000,-193.13406787,8.219e-05,2]
[422691873,1779251448000,-500.0,8.219e-05,2]
[422691875,1779251448000,-500.0,8.219e-05,2]
[422691896,1779251448000,-1584.8,8.219e-05,2]
[422691874,1779251448000,-500.0,8.219e-05,2]
[422691870,1779251448000,-500.0,8.219e-05,2]
[422691850,1779251448000,-834.14,8.219e-05,2]
[422691843,1779251448000,-500.0,8.219e-05,2]
[422691851,1779251448000,-500.0,8.219e-05,2]
[422691847,1779251448000,-828.44,8.219e-05,2]
[422691846,1779251448000,-500.0,8.219e-05,2]
[422691849,1779251448000,-500.0,8.219e-05,2]
[422691855,1779251448000,-500.0,8.219e-05,2]
[422691865,1779251448000,-500.0,8.219e-05,2]
[422691866,1779251448000,-500.0,8.219e-05,2]
[422691856,1779251448000,-500.0,8.219e-05,2]
[422691860,1779251448000,-263.87469167,8.219e-05,2]
[422691863,1779251448000,-227.03991049,8.219e-05,2]
[422691854,1779251448000,-500.0,8.219e-05,2]
[422691861,1779251448000,-500.0,8.219e-05,2]
[422691857,1779251448000,-500.8521573,8.219e-05,2]
[422691862,1779251448000,-500.0,8.219e-05,2]
[422691864,1779251448000,-557.1,8.219e-05,2]
[422691859,1779251448000,-500.0,8.219e-05,2]
[422691868,1779251448000,-1278.01,8.219e-05,2]
[422691872,1779251448000,-500.0,8.219e-05,2]
[422691879,1779251448000,-500.0,8.219e-05,2]
[422691867,1779251448000,-500.0,8.219e-05,2]
[422691880,1779251448000,-500.0,8.219e-05,2]
[422691878,1779251448000,-1950.06,8.219e-05,2]
[422691869,1779251448000,-501.11523714,8.219e-05,2]
[422691871,1779251448000,-500.0,8.219e-05,2]
[422691858,1779251448000,-500.0,8.219e-05,2]
[422691906,1779251473000,-2355.83636504,8.219e-05,2]
[422691907,1779251904000,160.165432,3.52e-05,2]
[422691908,1779251997000,1753.13,0.000178,120]
[422691910,1779252169000,10014.0,0.00017808,120]
[422691912,1779252351000,-2327.04477552,6.737e-05,2]
[422691914,1779252435000,-1970.11531928,6.737e-05,2]
[422691913,1779252435000,-302.2747456,6.585e-05,2]
[422691921,1779252453000,-300.0,7.148e-05,2]
[422691916,1779252453000,-539.16823737,6.84e-05,2]
[422691915,1779252453000,-1702.0019507,6.737e-05,2]
[422691917,1779252453000,-500.0,7.135e-05,2]
[422691918,1779252453000,-300.0,7.147e-05,2]
[422691919,1779252453000,-300.0,7.148e-05,2]
[422691920,1779252453000,-300.0,7.148e-05,2]
[422691922,1779252453000,-1200.0,7.148e-05,2]
[422691931,1779252453000,-249.36241153,7.292e-05,2]
[422691924,1779252453000,-216.794795,7.263e-05,2]
[422691926,1779252453000,-300.0,7.292e-05,2]
[422691925,1779252453000,-300.0,7.292e-05,2]
[422691927,1779252453000,-300.0,7.292e-05,2]
[422691928,1779252453000,-300.0,7.292e-05,2]
[422691929,1779252453000,-300.0,7.292e-05,2]
[422691930,1779252453000,-300.0,7.292e-05,2]
[422691923,1779252453000,-16228.8852104,7.15e-05,2]
[422691933,1779252559000,-50.63758847,7.292e-05,2]
[422691932,1779252559000,-300.0,7.291e-05,2]
[422691934,1779252559000,-300.0,7.292e-05,2]
[422691936,1779252559000,-300.0,7.292e-05,2]
[422691937,1779252559000,-300.0,7.292e-05,2]
[422691938,1779252559000,-300.0,7.292e-05,2]
[422691940,1779252559000,-300.0,7.292e-05,2]
[422691939,1779252559000,-300.0,7.292e-05,2]
[422691941,1779252559000,-244.76421153,7.292e-05,2]
[422691935,1779252559000,-300.0,7.292e-05,2]
[422691988,1779252631000,-155.83404113,7.886e-05,2]
[422691986,1779252631000,-199.1786804,7.641e-05,2]
[422691984,1779252631000,-294.79,7.608e-05,2]
[422691978,1779252631000,-55.23578847,7.292e-05,2]
[422691980,1779252631000,-151.0,7.391e-05,2]
[422691982,1779252631000,-500.0,7.511e-05,2]
[422692149,1779252638000,-300.0,8.018e-05,2]
[422692152,1779252638000,-136222.74366896,8.019e-05,2]
[422692148,1779252638000,-95.93728192,7.886e-05,2]
[422692151,1779252638000,-1200.0,8.018e-05,2]
[422692153,1779252638000,-560.58951452,8.019e-05,2]
[422692150,1779252638000,-300.0,8.018e-05,2]
[422692158,1779252640000,-2120.24758729,8.019e-05,2]
[422692157,1779252640000,-1929.72072999,8.019e-05,2]
[422692156,1779252640000,-3922.60966843,8.019e-05,2]
[422692168,1779252643000,-8910.23676657,8.019e-05,2]
[422692177,1779252646000,-2626.245845,8.019e-05,2]
[422692178,1779252647000,-184439.55360908,8.019e-05,2]
[422692179,1779252647000,-9992.92028562,8.019e-05,2]
[422692180,1779252647000,-307.708,8.019e-05,2]
[422692189,1779253552000,-275.39996262,7.198e-05,2]
[422692187,1779253552000,-161.9065004,7.024e-05,2]
[422692188,1779253552000,-551.65493966,7.067e-05,2]
[422692338,1779253647000,-24.60003738,7.198e-05,2]
[422692339,1779253647000,-263.4241471,7.393e-05,2]
[422692340,1779253647000,-219.49662468,7.393e-05,2]
[422692344,1779253747000,-106.47258792,7.393e-05,2]
[422692345,1779253747000,-357.89712841,7.393e-05,2]
[422692343,1779253747000,-540.62184086,7.373e-05,2]
[422692342,1779253747000,-1822.93636733,7.353e-05,2]
[422692389,1779253832000,-151.5897819,7.4e-05,2]
[422692388,1779253832000,-438.7414403,7.399e-05,2]
[422692392,1779253832000,-300.0,7.586e-05,2]
[422692390,1779253832000,-151.0,7.4e-05,2]
[422692391,1779253832000,-300.0,7.586e-05,2]
[422692387,1779253832000,-98.68043369,7.393e-05,2]
[422692393,1779253832000,-300.0,7.586e-05,2]
[422692396,1779253832000,-964.14591751,7.587e-05,2]
[422692398,1779253832000,-161.96474189,7.618e-05,2]
[422692397,1779253832000,-3852.72708637,7.587e-05,2]
[422692394,1779253832000,-300.0,7.586e-05,2]
[422692399,1779253832000,-377.76488958,7.618e-05,2]
[422692400,1779253832000,-243.35153153,7.619e-05,2]
[422692395,1779253832000,-1200.0,7.586e-05,2]
[422692475,1779253838000,-300.0,8.178e-05,2]
[422692465,1779253838000,-300.0,8.178e-05,2]
[422692477,1779253838000,-300.0,8.178e-05,2]
[422692478,1779253838000,-300.0,8.178e-05,2]
[422692468,1779253838000,-300.0,8.178e-05,2]
[422692474,1779253838000,-300.0,8.178e-05,2]
[422692470,1779253838000,-300.0,8.178e-05,2]
[422692472,1779253838000,-300.0,8.178e-05,2]
[422692471,1779253838000,-300.0,8.178e-05,2]
[422692480,1779253838000,-300.0,8.178e-05,2]
[422692473,1779253838000,-300.0,8.178e-05,2]
[422692479,1779253838000,-300.0,8.178e-05,2]
[422692482,1779253838000,-161.70661154,8.208e-05,2]
[422692481,1779253838000,-600.0,8.178e-05,2]
[422692483,1779253838000,-160.0,8.208e-05,2]
[422692484,1779253838000,-766.43500783,8.208e-05,2]
[422692485,1779253838000,-160.0,8.209e-05,2]
[422692476,1779253838000,-300.0,8.178e-05,2]
[422692467,1779253838000,-300.0,8.178e-05,2]
[422692433,1779253838000,-500.0,7.718e-05,2]
[422692448,1779253838000,-398.97496663,7.719e-05,2]
[422692429,1779253838000,-500.0,7.718e-05,2]
[422692437,1779253838000,-500.0,7.718e-05,2]
[422692490,1779253838000,-20256.35748839,8.219e-05,2]
[422692435,1779253838000,-500.0,7.718e-05,2]
[422692431,1779253838000,-500.0,7.718e-05,2]
[422692423,1779253838000,-151.0,7.4e-05,2]
[422692427,1779253838000,-2687.58851647,7.718e-05,2]
[422692425,1779253838000,-139484.37725691,7.619e-05,2]
[422692463,1779253838000,-152.0,8.149e-05,7]
[422692439,1779253838000,-500.0,7.718e-05,2]
[422692443,1779253838000,-414.78115913,7.718e-05,2]
[422692445,1779253838000,-95547.08388676,7.719e-05,2]
[422692459,1779253838000,-168.9996201,7.955e-05,2]
[422692450,1779253838000,-81545.72320323,7.719e-05,2]
[422692457,1779253838000,-177.4136158,7.942e-05,2]
[422692453,1779253838000,-281.01403108,7.719e-05,2]
[422692461,1779253838000,-364.77000493,8e-05,2]
[422692455,1779253838000,-54274.48846662,7.719e-05,2]
[422692441,1779253838000,-500.0,7.718e-05,2]
[422692487,1779253838000,-275.986,8.218e-05,2]
[422692469,1779253838000,-300.0,8.178e-05,2]
[422692486,1779253838000,-2077.47790546,8.213e-05,2]
[422692511,1779253838000,-892.28,8.219e-05,2]
[422692515,1779253838000,-500.0,8.219e-05,2]
[422692512,1779253838000,-500.0,8.219e-05,2]
[422692516,1779253838000,-500.0,8.219e-05,2]
[422692513,1779253838000,-500.0,8.219e-05,2]
[422692518,1779253838000,-500.0,8.219e-05,2]
[422692525,1779253838000,-439.07932404,8.219e-05,2]
[422692517,1779253838000,-500.0,8.219e-05,2]
[422692514,1779253838000,-500.0,8.219e-05,2]
[422692527,1779253838000,-500.0,8.219e-05,2]
[422692519,1779253838000,-500.0,8.219e-05,2]
[422692522,1779253838000,-500.0,8.219e-05,2]
[422692524,1779253838000,-500.0,8.219e-05,2]
[422692520,1779253838000,-500.0,8.219e-05,2]
[422692523,1779253838000,-500.0,8.219e-05,2]
[422692528,1779253838000,-500.0,8.219e-05,2]
[422692529,1779253838000,-1092.1,8.219e-05,2]
[422692488,1779253838000,-235.4016559,8.218e-05,2]
[422692526,1779253838000,-500.0,8.219e-05,2]
[422692510,1779253838000,-500.63785134,8.219e-05,2]
[422692521,1779253838000,-500.0,8.219e-05,2]
[422692509,1779253838000,-500.0,8.219e-05,2]
[422692489,1779253838000,-500.0,8.218e-05,2]
[422692507,1779253838000,-500.0,8.219e-05,2]
[422692493,1779253838000,-3116.2369,8.219e-05,2]
[422692491,1779253838000,-500.0,8.219e-05,2]
[422692492,1779253838000,-500.0,8.219e-05,2]
[422692496,1779253838000,-591.4956,8.219e-05,2]
[422692497,1779253838000,-500.0,8.219e-05,2]
[422692500,1779253838000,-500.0,8.219e-05,2]
[422692498,1779253838000,-500.0,8.219e-05,2]
[422692494,1779253838000,-500.0,8.219e-05,2]
[422692499,1779253838000,-651.51,8.219e-05,2]
[422692501,1779253838000,-500.0,8.219e-05,2]
[422692495,1779253838000,-500.0,8.219e-05,2]
[422692504,1779253838000,-571.58,8.219e-05,2]
[422692503,1779253838000,-500.0,8.219e-05,2]
[422692506,1779253838000,-500.0,8.219e-05,2]
[422692502,1779253838000,-500.0,8.219e-05,2]
[422692505,1779253838000,-500.0,8.219e-05,2]
[422692508,1779253838000,-500.0,8.219e-05,2]
[422692557,1779253839000,-500.0,8.219e-05,2]
[422692574,1779253839000,-500.0,8.219e-05,2]
[422692564,1779253839000,-500.0,8.219e-05,2]
[422692572,1779253839000,-500.0,8.219e-05,2]
[422692568,1779253839000,-501.77397764,8.219e-05,2]
[422692560,1779253839000,-393.24079169,8.219e-05,2]
[422692571,1779253839000,-500.0,8.219e-05,2]
[422692575,1779253839000,-500.0,8.219e-05,2]
[422692559,1779253839000,-106.75920831,8.219e-05,2]
[422692567,1779253839000,-1490.61,8.219e-05,2]
[422692558,1779253839000,-500.0,8.219e-05,2]
[422692573,1779253839000,-588.85118439,8.219e-05,2]
[422692565,1779253839000,-515.77790765,8.219e-05,2]
[422692584,1779253839000,-500.0,8.219e-05,2]
[422692566,1779253839000,-515.14,8.219e-05,2]
[422692569,1779253839000,-500.0,8.219e-05,2]
[422692570,1779253839000,-519.7,8.219e-05,2]
[422692577,1779253839000,-500.0,8.219e-05,2]
[422692582,1779253839000,-500.0,8.219e-05,2]
[422692583,1779253839000,-385.013608,8.219e-05,2]
[422692578,1779253839000,-568.48,8.219e-05,2]